fUST/lending_fUST_20250627
["ID","MTS","AMOUNT","RATE_DAILY","PERIOD"]
[368022548,1750996249979,-151.0,0.00020008,2]
[368022549,1750996249989,-151.0,0.00020008,2]
[368022550,1750996250006,-151.0,0.00020008,2]
[368022551,1750996250016,-151.0,0.00020008,2]
[368022552,1750996250026,-156.350543,0.00020008,2]
[368022553,1750996250035,-151.0,0.00020008,2]
[368022554,1750996250046,-525.844389,0.00020008,2]
[368022555,1750996250055,-525.844389,0.00020008,2]
[368022556,1750996250065,-151.0,0.00020008,2]
[368022557,1750996250076,-151.0,0.00020008,2]
[368022558,1750996250086,-277.6118644,0.00020008,2]
[368022559,1750996250096,-5000.0,0.00020008,2]
[368022560,1750996250106,-25000.0,0.00020008,2]
[368022561,1750996250116,-151.0,0.00020008,2]
[368022562,1750996250125,-151.0,0.00020008,2]
[368022563,1750996250135,-505.25517257,0.00020008,2]
[368022564,1750996250144,-151.0,0.00020008,2]
[368022565,1750996250154,-151.0,0.00020008,2]
[368022566,1750996250163,-666.0,0.00020008,2]
[368022567,1750996250173,-151.0,0.00020008,2]
[368022568,1750996250183,-275.86690619,0.00020008,2]
[368022569,1750996250192,-237.25150823,0.00020008,2]
[368022570,1750996250202,-207.4,0.00020008,2]
[368022571,1750996250211,-151.0,0.00020008,2]
[368022572,1750996250221,-151.0,0.00020008,2]
[368022573,1750996250231,-199.98954325,0.00020008,2]
[368022574,1750996250240,-703.81394276,0.00020037,2]
[368022575,1750996250250,-155.334899,0.00020042,2]
[368022576,1750996250259,-151.0,0.00020042,2]
[368022577,1750996250269,-500.0,0.00020042,2]
[368022578,1750996250278,-690.642,0.00020063,2]
[368022579,1750996250288,-160.0,0.00020087,2]
[368022580,1750996250297,-160.0,0.00020087,2]
[368022581,1750996250307,-160.0,0.00020087,2]
[368022582,1750996250317,-847.04181546,0.00020087,2]
[368022583,1750996250326,-160.0,0.00020087,2]
[368022584,1750996250336,-230.26210603,0.00020087,2]
[368022585,1750996250346,-213.75309343,0.00020087,2]
[368022586,1750996250356,-160.0,0.00020087,2]
[368022587,1750996250366,-160.0,0.00020087,2]
[368022588,1750996250376,-160.0,0.00020087,2]
[368022589,1750996250385,-160.0,0.00020087,2]
[368022590,1750996250395,-214.91804724,0.00020087,2]
[368022591,1750996250404,-836.98798914,0.00020087,2]
[368022592,1750996250414,-160.0,0.00020087,2]
[368022593,1750996250423,-12562.41216491,0.00020087,2]
[368022594,1750996250432,-6760.62937336,0.00020107,2]
[368022595,1750996250442,-716.195754,0.00020118,2]
[368022596,1750996250454,-300.0,0.00020125,2]
[368022597,1750996250465,-714.66341437,0.00020173,2]
[368022598,1750996250474,-177.4788171,0.00020192,2]
[368022599,1750996250484,-575.118961,0.00020192,2]
[368022600,1750996250495,-159.2394861,0.00020192,2]
[368022601,1750996250504,-153.0,0.00020192,2]
[368022602,1750996250514,-177.4788171,0.00020192,2]
[368022603,1750996250524,-159.2394861,0.00020192,2]
[368022604,1750996250534,-153.0,0.00020192,2]
[368022605,1750996250544,-575.118961,0.00020192,2]
[368022606,1750996250555,-177.4788171,0.00020192,2]
[368022607,1750996250565,-159.2394861,0.00020192,2]
[368022608,1750996250576,-575.118961,0.00020192,2]
[368022609,1750996250585,-176.9019081,0.00020192,2]
[368022610,1750996250595,-1000.0,0.00020268,2]
[368022611,1750996250605,-500.0,0.00020273,2]
[368022612,1750996250616,-460.0,0.00020273,2]
[368022613,1750996250626,-433.93083996,0.00020273,2]
[368022614,1750996250636,-460.0,0.00020273,2]
[368022615,1750996250647,-583.22,0.00020273,2]
[368022616,1750996250657,-532.07,0.00020273,2]
[368022617,1750996250668,-460.0,0.00020273,2]
[368022618,1750996250677,-483.21,0.00020273,2]
[368022619,1750996250687,-460.0,0.00020273,2]
[368022620,1750996250697,-460.0,0.00020273,2]
[368022621,1750996250707,-460.0,0.00020273,2]
[368022622,1750996250716,-460.0,0.00020273,2]
[368022623,1750996250726,-629.94,0.00020273,2]
[368022624,1750996250735,-460.0,0.00020273,2]
[368022625,1750996250744,-460.0,0.00020273,2]
[368022626,1750996250753,-460.0,0.00020273,2]
[368022627,1750996250763,-460.0,0.00020273,2]
[368022628,1750996250772,-460.0,0.00020273,2]
[368022629,1750996250781,-460.0,0.00020273,2]
[368022630,1750996250790,-245.065136,0.00020273,2]
[368022631,1750996250800,-460.0,0.00020273,2]
[368022632,1750996250809,-460.0,0.00020273,2]
[368022633,1750996250818,-1114.1,0.00020273,2]
[368022634,1750996250827,-460.0,0.00020273,2]
[368022635,1750996250837,-151.369604,0.00020273,2]
[368022636,1750996250846,-151.0,0.00020273,2]
[368022637,1750996250855,-460.0,0.00020273,2]
[368022638,1750996250864,-151.0,0.00020273,2]
[368022639,1750996250874,-151.0,0.00020273,2]
[368022640,1750996250883,-151.0,0.00020273,2]
[368022641,1750996250892,-151.0,0.00020273,2]
[368022642,1750996250902,-460.0,0.00020273,2]
[368022643,1750996250911,-460.0,0.00020273,2]
[368022644,1750996250921,-151.0,0.00020273,2]
[368022645,1750996250931,-460.0,0.00020273,2]
[368022646,1750996250940,-460.0,0.00020273,2]
[368022647,1750996250949,-460.0,0.00020273,2]
[368022648,1750996250959,-862.68,0.00020273,2]
[368022649,1750996250968,-460.0,0.00020273,2]
[368022650,1750996250978,-208.480772,0.00020273,2]
[368022651,1750996250989,-460.0,0.00020273,2]
[368022652,1750996251003,-460.0,0.00020273,2]
[368022653,1750996251013,-208.480772,0.00020273,2]
[368022654,1750996251023,-460.0,0.00020273,2]
[368022655,1750996251034,-460.0,0.00020273,2]
[368022656,1750996251044,-460.0,0.00020273,2]
[368022657,1750996251054,-460.0,0.00020273,2]
[368022658,1750996251065,-460.0,0.00020273,2]
[368022659,1750996251076,-460.0,0.00020273,2]
[368022660,1750996251088,-460.0,0.00020273,2]
[368022661,1750996251099,-460.0,0.00020273,2]
[368022662,1750996251109,-832.18,0.00020273,2]
[368022663,1750996251118,-745.34,0.00020273,2]
[368022664,1750996251128,-1599.49,0.00020273,2]
[368022665,1750996251138,-460.0,0.00020273,2]
[368022666,1750996251148,-460.0,0.00020273,2]
[368022667,1750996251157,-460.0,0.00020273,2]
[368022668,1750996251167,-562.22,0.00020273,2]
[368022669,1750996251176,-460.0,0.00020273,2]
[368022670,1750996251187,-606.6,0.00020273,2]
[368022671,1750996251197,-460.0,0.00020273,2]
[368022672,1750996251206,-460.0,0.00020273,2]
[368022673,1750996251216,-1743.41,0.00020273,2]
[368022674,1750996251225,-569.10819402,0.00020273,2]
[368022675,1750996251234,-460.0,0.00020273,2]
[368022676,1750996251244,-1732.43,0.00020273,2]
[368022677,1750996251253,-1592.32,0.00020273,2]
[368022678,1750996251263,-926.69,0.00020273,2]
[368022679,1750996251272,-581.04,0.00020273,2]
[368022680,1750996251282,-2615.58,0.00020273,2]
[368022681,1750996251291,-460.0,0.00020273,2]
[368022682,1750996251300,-460.0,0.00020273,2]
[368022683,1750996251310,-460.0,0.00020273,2]
[368022684,1750996251319,-541.92,0.00020273,2]
[368022685,1750996251329,-399.378404,0.00020273,2]
[368022686,1750996251338,-1049.88191,0.00020273,2]
[368022687,1750996251347,-1049.88191,0.00020273,2]
[368022688,1750996251364,-460.0,0.00020273,2]
[368022689,1750996251375,-460.0,0.00020273,2]
[368022690,1750996251385,-1580.01,0.00020273,2]
[368022691,1750996251395,-460.0,0.00020273,2]
[368022692,1750996251405,-948.51,0.00020273,2]
[368022693,1750996251415,-460.0,0.00020273,2]
[368022694,1750996251424,-582.06,0.00020273,2]
[368022695,1750996251434,-1243.88,0.00020273,2]
[368022696,1750996251444,-848.57,0.00020273,2]
[368022697,1750996251453,-160.60937209,0.00020273,2]
[368022698,1750996251462,-460.0,0.00020273,2]
[368022699,1750996251472,-460.0,0.00020273,2]
[368022700,1750996251481,-494.07,0.00020273,2]
[368022701,1750996251491,-564.61,0.00020273,2]
[368022702,1750996251500,-460.0,0.00020273,2]
[368022703,1750996251509,-460.0,0.00020273,2]
[368022704,1750996251519,-853.37,0.00020273,2]
[368022705,1750996251528,-764.25,0.00020273,2]
[368022706,1750996251537,-460.0,0.00020273,2]
[368022707,1750996251548,-151.0,0.00020273,2]
[368022708,1750996251558,-460.0,0.00020273,2]
[368022709,1750996251568,-751.98,0.00020273,2]
[368022710,1750996251577,-460.0,0.00020273,2]
[368022711,1750996251586,-2021.67,0.00020273,2]
[368022712,1750996251596,-565.92,0.00020273,2]
[368022713,1750996251605,-2017.54,0.00020273,2]
[368022714,1750996251614,-460.0,0.00020273,2]
[368022715,1750996251623,-555.33,0.00020273,2]
[368022716,1750996251632,-460.0,0.00020273,2]
[368022717,1750996251642,-460.0,0.00020273,2]
[368022718,1750996251651,-151.0,0.00020273,2]
[368022719,1750996251660,-151.0,0.00020273,2]
[368022720,1750996251670,-555.65,0.00020273,2]
[368022721,1750996251679,-460.0,0.00020273,2]
[368022722,1750996251688,-151.0,0.00020273,2]
[368022723,1750996251697,-151.0,0.00020273,2]
[368022724,1750996251707,-460.0,0.00020273,2]
[368022725,1750996251716,-460.0,0.00020273,2]
[368022726,1750996251725,-460.0,0.00020273,2]
[368022727,1750996251734,-460.0,0.00020273,2]
[368022728,1750996251744,-2341.34,0.00020273,2]
[368022729,1750996251897,-460.0,0.00020273,2]
[368022730,1750996251907,-178.57979428,0.00020273,2]
[368022731,1750996251916,-460.0,0.00020273,2]
[368022732,1750996251925,-771.04,0.00020273,2]
[368022733,1750996251935,-460.0,0.00020273,2]
[368022734,1750996251944,-460.0,0.00020273,2]
[368022735,1750996251954,-906.39,0.00020273,2]
[368022736,1750996251963,-460.0,0.00020273,2]
[368022737,1750996251972,-804.9,0.00020273,2]
[368022738,1750996251981,-1327.84,0.00020273,2]
[368022739,1750996251990,-609.1211868,0.00020273,2]
[368022740,1750996252004,-4263.33,0.00020273,2]
[368022741,1750996252013,-460.0,0.00020273,2]
[368022742,1750996252022,-460.0,0.00020273,2]
[368022743,1750996252032,-2077.85,0.00020273,2]
[368022744,1750996252042,-460.0,0.00020273,2]
[368022745,1750996252051,-460.0,0.00020273,2]
[368022746,1750996252060,-874.94,0.00020273,2]
[368022747,1750996252070,-460.0,0.00020273,2]
[368022748,1750996252080,-689.65,0.00020273,2]
[368022749,1750996252090,-460.0,0.00020273,2]
[368022750,1750996252100,-460.0,0.00020273,2]
[368022751,1750996252110,-2347.23,0.00020273,2]
[368022752,1750996252120,-464.74996571,0.00020273,2]
[368022753,1750996252130,-151.0,0.00020273,2]
[368022754,1750996252139,-151.0,0.000203,4]
[368022755,1750996252148,-6760.62937336,0.00020314,3]
[368022756,1750996252158,-2666.0,0.00020357,2]
[368022757,1750996252167,-151.0,0.000205,3]
[368022758,1750996252177,-703.81394276,0.00020516,2]
[368022759,1750996252187,-847.04181546,0.00020521,3]
[368022760,1750996252196,-12562.41216491,0.00020521,3]
[368022761,1750996252206,-160.0,0.00020521,3]
[368022762,1750996252215,-213.75309343,0.00020521,3]
[368022763,1750996252225,-6760.62937336,0.00020521,3]
[368022764,1750996252234,-151.0,0.00020521,2]
[368022765,1750996252243,-151.0,0.00020521,2]
[368022766,1750996252253,-209.714476,0.00020521,2]
[368022767,1750996252262,-209.714476,0.00020521,2]
[368022768,1750996252272,-151.0,0.00020521,2]
[368022769,1750996252281,-1944.44,0.00020538,3]
[368022770,1750996252291,-972.22,0.00020538,3]
[368022771,1750996252301,-486.1,0.00020538,3]
[368022772,1750996252311,-151.0,0.00020547,2]
[368022773,1750996252320,-460.0,0.00020547,2]
[368022774,1750996252330,-583.22,0.00020547,2]
[368022775,1750996252339,-532.07,0.00020547,2]
[368022776,1750996252349,-460.0,0.00020547,2]
[368022777,1750996252358,-460.0,0.00020547,2]
[368022778,1750996252367,-460.0,0.00020547,2]
[368022779,1750996252376,-272.19,0.00020547,2]
[368022780,1750996252386,-460.0,0.00020547,2]
[368022781,1750996252397,-460.0,0.00020547,2]
[368022782,1750996252406,-151.0,0.00020547,2]
[368022783,1750996252417,-629.94,0.00020547,2]
[368022784,1750996252428,-460.0,0.00020547,2]
[368022785,1750996252438,-151.0,0.00020547,2]
[368022786,1750996252449,-460.0,0.00020547,2]
[368022787,1750996252458,-460.0,0.00020547,2]
[368022788,1750996252469,-460.0,0.00020547,2]
[368022789,1750996252478,-460.0,0.00020547,2]
[368022790,1750996252488,-460.0,0.00020547,2]
[368022791,1750996252497,-261.12962635,0.00020547,2]
[368022792,1750996252507,-460.0,0.00020547,2]
[368022793,1750996252516,-1114.1,0.00020547,2]
[368022794,1750996252527,-460.0,0.00020547,2]
[368022795,1750996252537,-460.0,0.00020547,2]
[368022796,1750996252546,-460.0,0.00020547,2]
[368022797,1750996252556,-460.0,0.00020547,2]
[368022798,1750996252565,-460.0,0.00020547,2]
[368022799,1750996252574,-862.68,0.00020547,2]
[368022800,1750996252583,-460.0,0.00020547,2]
[368022801,1750996252593,-151.0,0.00020547,2]
[368022802,1750996252603,-460.0,0.00020547,2]
[368022803,1750996252612,-153.41228,0.00020547,2]
[368022804,1750996252623,-151.0,0.00020547,2]
[368022805,1750996252633,-151.0,0.00020547,2]
[368022806,1750996252642,-151.0,0.00020547,2]
[368022807,1750996252651,-151.0,0.00020547,2]
[368022808,1750996252660,-460.0,0.00020547,2]
[368022809,1750996252670,-460.0,0.00020547,2]
[368022810,1750996252679,-179.946367,0.00020547,2]
[368022811,1750996252688,-460.0,0.00020547,2]
[368022812,1750996252699,-460.0,0.00020547,2]
[368022813,1750996252708,-460.0,0.00020547,2]
[368022814,1750996252717,-832.18,0.00020547,2]
[368022815,1750996252726,-745.34,0.00020547,2]
[368022816,1750996252736,-1599.49,0.00020547,2]
[368022817,1750996252745,-460.0,0.00020547,2]
[368022818,1750996252754,-460.0,0.00020547,2]
[368022819,1750996252764,-460.0,0.00020547,2]
[368022820,1750996252773,-460.0,0.00020547,2]
[368022821,1750996252785,-606.6,0.00020547,2]
[368022822,1750996252796,-460.0,0.00020547,2]
[368022823,1750996252807,-460.0,0.00020547,2]
[368022824,1750996252816,-1743.41,0.00020547,2]
[368022825,1750996252826,-460.0,0.00020547,2]
[368022826,1750996252837,-1732.43,0.00020547,2]
[368022827,1750996252846,-1592.32,0.00020547,2]
[368022828,1750996252856,-926.69,0.00020547,2]
[368022829,1750996252867,-581.04,0.00020547,2]
[368022830,1750996252877,-2615.58,0.00020547,2]
[368022831,1750996252886,-460.0,0.00020547,2]
[368022832,1750996252895,-460.0,0.00020547,2]
[368022833,1750996252904,-460.0,0.00020547,2]
[368022834,1750996252914,-541.92,0.00020547,2]
[368022835,1750996252923,-460.0,0.00020547,2]
[368022836,1750996252932,-460.0,0.00020547,2]
[368022837,1750996252942,-1580.01,0.00020547,2]
[368022838,1750996252953,-948.51,0.00020547,2]
[368022839,1750996252962,-460.0,0.00020547,2]
[368022840,1750996252972,-525.844389,0.00020547,2]
[368022841,1750996252983,-525.844389,0.00020547,2]
[368022842,1750996252993,-460.0,0.00020547,2]
[368022843,1750996253006,-582.06,0.00020547,2]
[368022844,1750996253016,-1243.88,0.00020547,2]
[368022845,1750996253027,-848.57,0.00020547,2]
[368022846,1750996253036,-460.0,0.00020547,2]
[368022847,1750996253047,-460.0,0.00020547,2]
[368022848,1750996253057,-494.07,0.00020547,2]
[368022849,1750996253067,-564.61,0.00020547,2]
[368022850,1750996253078,-460.0,0.00020547,2]
[368022851,1750996253088,-460.0,0.00020547,2]
[368022852,1750996253097,-853.37,0.00020547,2]
[368022853,1750996253106,-764.25,0.00020547,2]
[368022854,1750996253115,-460.0,0.00020547,2]
[368022855,1750996253124,-460.0,0.00020547,2]
[368022856,1750996253134,-751.98,0.00020547,2]
[368022857,1750996253143,-460.0,0.00020547,2]
[368022858,1750996253152,-2021.67,0.00020547,2]
[368022859,1750996253162,-565.92,0.00020547,2]
[368022860,1750996253172,-2017.54,0.00020547,2]
[368022861,1750996253181,-440.0,0.00020547,2]
[368022862,1750996253190,-555.33,0.00020547,2]
[368022863,1750996253200,-460.0,0.00020547,2]
[368022864,1750996253210,-460.0,0.00020547,2]
[368022865,1750996253219,-555.65,0.00020547,2]
[368022866,1750996253229,-460.0,0.00020547,2]
[368022867,1750996253238,-460.0,0.00020547,2]
[368022868,1750996253247,-460.0,0.00020547,2]
[368022869,1750996253257,-151.0,0.00020547,2]
[368022870,1750996253266,-460.0,0.00020547,2]
[368022871,1750996253276,-460.0,0.00020547,2]
[368022872,1750996253285,-2341.34,0.00020547,2]
[368022873,1750996253295,-460.0,0.00020547,2]
[368022874,1750996253304,-460.0,0.00020547,2]
[368022875,1750996253314,-771.04,0.00020547,2]
[368022876,1750996253324,-460.0,0.00020547,2]
[368022877,1750996253334,-460.0,0.00020547,2]
[368022878,1750996253343,-906.39,0.00020547,2]
[368022879,1750996253352,-460.0,0.00020547,2]
[368022880,1750996253362,-804.9,0.00020547,2]
[368022881,1750996253371,-1327.84,0.00020547,2]
[368022882,1750996253381,-4263.33,0.00020547,2]
[368022883,1750996253390,-460.0,0.00020547,2]
[368022884,1750996253399,-460.0,0.00020547,2]
[368022885,1750996253410,-2077.85,0.00020547,2]
[368022886,1750996253421,-460.0,0.00020547,2]
[368022887,1750996253431,-874.94,0.00020547,2]
[368022888,1750996253440,-492.98,0.00020547,2]
[368022889,1750996253450,-460.0,0.00020547,2]
[368022890,1750996253459,-689.65,0.00020547,2]
[368022891,1750996253469,-460.0,0.00020547,2]
[368022892,1750996253478,-2347.23,0.00020547,2]
[368022893,1750996253487,-151.0,0.00020556,2]
[368022894,1750996253497,-151.0,0.00020556,2]
[368022895,1750996253506,-151.0,0.00020556,2]
[368022896,1750996253515,-151.0,0.00020556,2]
[368022897,1750996253524,-5000.0,0.00020556,2]
[368022898,1750996253534,-25136.47832711,0.00020556,2]
[368022899,1750996253543,-4942.73,0.000206,2]
[368022900,1750996253553,-151.0,0.000206,2]
[368022901,1750996253562,-151.0,0.000206,2]
[368022902,1750996253571,-151.0,0.000206,2]
[368022903,1750996253580,-151.0,0.000206,2]
[368022904,1750996253589,-151.0,0.000207,4]
[368022905,1750996253598,-420.0,0.00020708,2]
[368022906,1750996253609,-6760.62937336,0.00020728,3]
[368022907,1750996253618,-168.0,0.00020734,2]
[368022908,1750996253627,-1200.0,0.00020808,2]
[368022909,1750996253636,-151.0,0.0002081,2]
[368022910,1750996253646,-151.0,0.0002081,2]
[368022911,1750996253655,-151.0,0.0002081,2]
[368022912,1750996253664,-151.0,0.0002081,2]
[368022913,1750996253673,-184.588092,0.0002081,2]
[368022914,1750996253682,-218.061987,0.00020821,2]
[368022915,1750996253692,-151.0,0.00020821,2]
[368022916,1750996253701,-151.0,0.00020821,2]
[368022917,1750996253711,-460.0,0.00020821,2]
[368022918,1750996253720,-151.0,0.00020821,2]
[368022919,1750996253730,-151.0,0.00020821,2]
[368022920,1750996253739,-151.0,0.00020821,2]
[368022921,1750996253748,-583.22,0.00020821,2]
[368022922,1750996253757,-532.07,0.00020821,2]
[368022923,1750996253766,-460.0,0.00020821,2]
[368022924,1750996253775,-460.0,0.00020821,2]
[368022925,1750996253784,-460.0,0.00020821,2]
[368022926,1750996253794,-151.0,0.00020821,2]
[368022927,1750996253803,-151.0,0.00020821,2]
[368022928,1750996253813,-460.0,0.00020821,2]
[368022929,1750996253822,-460.0,0.00020821,2]
[368022930,1750996253831,-629.94,0.00020821,2]
[368022931,1750996253840,-460.0,0.00020821,2]
[368022932,1750996253850,-460.0,0.00020821,2]
[368022933,1750996253859,-460.0,0.00020821,2]
[368022934,1750996253868,-460.0,0.00020821,2]
[368022935,1750996253878,-460.0,0.00020821,2]
[368022936,1750996253887,-460.0,0.00020821,2]
[368022937,1750996253896,-460.0,0.00020821,2]
[368022938,1750996253906,-1114.1,0.00020821,2]
[368022939,1750996253915,-460.0,0.00020821,2]
[368022940,1750996253925,-151.0,0.00020821,2]
[368022941,1750996253934,-151.0,0.00020821,2]
[368022942,1750996253944,-274.140044,0.00020821,2]
[368022943,1750996254049,-460.0,0.00020821,2]
[368022944,1750996254059,-151.0,0.00020821,2]
[368022945,1750996254069,-460.0,0.00020821,2]
[368022946,1750996254081,-460.0,0.00020821,2]
[368022947,1750996254090,-862.68,0.00020821,2]
[368022948,1750996254100,-460.0,0.00020821,2]
[368022949,1750996254109,-208.480772,0.00020821,2]
[368022950,1750996254119,-460.0,0.00020821,2]
[368022951,1750996254128,-208.480772,0.00020821,2]
[368022952,1750996254137,-460.0,0.00020821,2]
[368022953,1750996254147,-460.0,0.00020821,2]
[368022954,1750996254156,-460.0,0.00020821,2]
[368022955,1750996254165,-460.0,0.00020821,2]
[368022956,1750996254175,-460.0,0.00020821,2]
[368022957,1750996254184,-832.18,0.00020821,2]
[368022958,1750996254193,-745.34,0.00020821,2]
[368022959,1750996254202,-1599.49,0.00020821,2]
[368022960,1750996254211,-460.0,0.00020821,2]
[368022961,1750996254221,-460.0,0.00020821,2]
[368022962,1750996254231,-606.6,0.00020821,2]
[368022963,1750996254240,-460.0,0.00020821,2]
[368022964,1750996254250,-460.0,0.00020821,2]
[368022965,1750996254260,-1743.41,0.00020821,2]
[368022966,1750996254269,-1732.43,0.00020821,2]
[368022967,1750996254280,-1592.32,0.00020821,2]
[368022968,1750996254289,-460.0,0.00020821,2]
[368022969,1750996254299,-926.69,0.00020821,2]
[368022970,1750996254308,-581.04,0.00020821,2]
[368022971,1750996254317,-2615.58,0.00020821,2]
[368022972,1750996254327,-460.0,0.00020821,2]
[368022973,1750996254336,-460.0,0.00020821,2]
[368022974,1750996254345,-460.0,0.00020821,2]
[368022975,1750996254356,-541.92,0.00020821,2]
[368022976,1750996254365,-1049.88191,0.00020821,2]
[368022977,1750996254375,-1049.88191,0.00020821,2]
[368022978,1750996254384,-460.0,0.00020821,2]
[368022979,1750996254394,-460.0,0.00020821,2]
[368022980,1750996254403,-1580.01,0.00020821,2]
[368022981,1750996254413,-460.0,0.00020821,2]
[368022982,1750996254422,-948.51,0.00020821,2]
[368022983,1750996254432,-460.0,0.00020821,2]
[368022984,1750996254442,-582.06,0.00020821,2]
[368022985,1750996254452,-1243.88,0.00020821,2]
[368022986,1750996254461,-151.0,0.00020821,2]
[368022987,1750996254471,-848.57,0.00020821,2]
[368022988,1750996254480,-151.0,0.00020821,2]
[368022989,1750996254489,-460.0,0.00020821,2]
[368022990,1750996254499,-460.0,0.00020821,2]
[368022991,1750996254508,-494.07,0.00020821,2]
[368022992,1750996254518,-564.61,0.00020821,2]
[368022993,1750996254527,-460.0,0.00020821,2]
[368022994,1750996254537,-853.37,0.00020821,2]
[368022995,1750996254546,-764.25,0.00020821,2]
[368022996,1750996254555,-460.0,0.00020821,2]
[368022997,1750996254565,-751.98,0.00020821,2]
[368022998,1750996254574,-460.0,0.00020821,2]
[368022999,1750996254586,-2021.67,0.00020821,2]
[368023000,1750996254597,-565.92,0.00020821,2]
[368023001,1750996254607,-209.714476,0.00020821,2]
[368023002,1750996254616,-2017.54,0.00020821,2]
[368023003,1750996254625,-209.714476,0.00020821,2]
[368023004,1750996254635,-555.33,0.00020821,2]
[368023005,1750996254645,-460.0,0.00020821,2]
[368023006,1750996254654,-555.65,0.00020821,2]
[368023007,1750996254664,-460.0,0.00020821,2]
[368023008,1750996254673,-460.0,0.00020821,2]
[368023009,1750996254684,-460.0,0.00020821,2]
[368023010,1750996254693,-460.0,0.00020821,2]
[368023011,1750996254702,-460.0,0.00020821,2]
[368023012,1750996254711,-2341.34,0.00020821,2]
[368023013,1750996254720,-460.0,0.00020821,2]
[368023014,1750996254730,-460.0,0.00020821,2]
[368023015,1750996254739,-771.04,0.00020821,2]
[368023016,1750996254748,-460.0,0.00020821,2]
[368023017,1750996254758,-460.0,0.00020821,2]
[368023018,1750996254768,-906.39,0.00020821,2]
[368023019,1750996254777,-804.9,0.00020821,2]
[368023020,1750996254787,-460.0,0.00020821,2]
[368023021,1750996254796,-1327.84,0.00020821,2]
[368023022,1750996254806,-4263.33,0.00020821,2]
[368023023,1750996254815,-460.0,0.00020821,2]
[368023024,1750996254824,-460.0,0.00020821,2]
[368023025,1750996254834,-2077.85,0.00020821,2]
[368023026,1750996254845,-460.0,0.00020821,2]
[368023027,1750996254854,-874.94,0.00020821,2]
[368023028,1750996254865,-460.0,0.00020821,2]
[368023029,1750996254876,-689.65,0.00020821,2]
[368023030,1750996254885,-460.0,0.00020821,2]
[368023031,1750996254895,-151.0,0.00020821,2]
[368023032,1750996254907,-2347.23,0.00020821,2]
[368023033,1750996254917,-151.0,0.00020821,2]
[368023034,1750996254927,-151.0,0.000209,3]
[368023035,1750996254937,-168.0,0.00020918,2]
[368023036,1750996254946,-182.0,0.00020925,2]
[368023037,1750996254957,-6760.62937336,0.00020934,4]
[368023038,1750996254968,-703.81394276,0.00020995,2]
[368023039,1750996254977,-6932.90631914,0.00021,2]
[368023040,1750996254987,-153.0,0.00021014,2]
[368023041,1750996254999,-153.0,0.00021014,2]
[368023042,1750996255009,-153.0,0.00021014,2]
[368023043,1750996255020,-500.0,0.00021045,2]
[368023044,1750996255031,-168.0,0.00021046,2]
[368023045,1750996255041,-151.0,0.00021095,2]
[368023046,1750996255052,-151.0,0.00021095,2]
[368023047,1750996255061,-151.0,0.00021095,2]